[Event "32nd NATO Chess Championship"]
[Site "Tartu, Estonia"]
[Date "2022.06.28"]
[Round "2.4"]
[White "Aagaard, Gert"]
[Black "Wang, Eigen"]
[Result "0-1"]
[TimeControl "90 min + 30 sec increment from move one"]
[WhiteFideId "1427024"]
[BlackFideId "2008777"]
[WhiteElo "1979"]
[BlackElo "2293"]

1. d4 {[%clk 01:30:51]} {[%emt 00:00:02]} Nf6 {[%clk 01:30:45]} {[%emt
00:00:21]} 2. Bf4 {[%clk 01:30:53]} {[%emt 00:00:28]} g6 {[%clk 01:30:20]}
{[%emt 00:00:56]} 3. Nf3 {[%emt 00:03:35]} Bg7 {[%clk 01:29:48]} {[%emt
00:00:53]} 4. Nbd2 {[%clk 01:28:40]} {[%emt 00:00:35]} d5 {[%clk 01:29:49]}
{[%emt 00:00:29]} 5. e3 {[%clk 01:28:51]} {[%emt 00:00:20]} O-O {[%clk
01:30:12]} {[%emt 00:00:07]} 6. Ne5 {[%clk 01:27:56]} {[%emt 00:01:25]} c5
{[%clk 01:29:34]} {[%emt 00:01:08]} 7. c3 {[%clk 01:28:01]} {[%emt 00:00:25]}
Nh5 {[%clk 01:24:41]} {[%emt 00:05:22]} 8. Bd3 {[%clk 01:17:33]} {[%emt
00:10:57]} Nc6 {[%clk 01:19:48]} {[%emt 00:05:25]} 9. Nxc6 {[%clk 01:12:19]}
{[%emt 00:05:44]} bxc6 {[%clk 01:20:13]} {[%emt 00:00:05]} 10. dxc5 {[%clk
01:11:09]} {[%emt 00:01:40]} e5 {[%clk 01:18:37]} {[%emt 00:02:06]} 11. Bg3
{[%clk 01:11:04]} {[%emt 00:00:35]} f5 {[%clk 01:13:40]} {[%emt 00:05:27]} 12.
f3 {[%clk 01:03:26]} {[%emt 00:08:08]} Qg5 {[%clk 01:07:12]} {[%emt 00:06:58]}
13. f4 {[%clk 00:55:30]} {[%emt 00:08:25]} exf4 {[%clk 01:06:54]} {[%emt
00:00:49]} 14. Bxf4 {[%clk 00:50:24]} {[%emt 00:05:36]} Nxf4 {[%clk 01:06:51]}
{[%emt 00:00:33]} 15. exf4 {[%clk 00:50:19]} {[%emt 00:00:35]} Re8+ {[%clk
01:04:53]} {[%emt 00:02:28]} 16. Kf1 {[%clk 00:48:59]} {[%emt 00:01:48]} Qxf4+
{[%clk 01:05:12]} {[%emt 00:00:12]} 17. Nf3 {[%clk 00:48:40]} {[%emt 00:00:49]}
Rb8 {[%clk 00:57:54]} {[%emt 00:07:49]} 18. Rb1 {[%clk 00:44:38]} {[%emt
00:04:31]} a5 {[%clk 00:51:30]} {[%emt 00:06:54]} 19. Qd2 {[%clk 00:44:15]}
{[%emt 00:00:53]} Re3 {[%clk 00:51:06]} {[%emt 00:00:54]} 20. Rd1 {[%clk
00:42:01]} {[%emt 00:02:44]} Bh6 {[%clk 00:50:09]} {[%emt 00:01:27]} 21. Qf2
{[%clk 00:40:31]} {[%emt 00:02:00]} Rxd3 {[%clk 00:47:54]} {[%emt 00:02:46]} 22.
Rxd3 {[%clk 00:40:26]} {[%emt 00:00:35]} Ba6 {[%clk 00:48:16]} {[%emt
00:00:07]} 23. Ne1 {[%clk 00:40:40]} {[%emt 00:00:16]} Rxb2 {[%clk 00:42:09]}
{[%emt 00:06:38]} 24. Qxf4 {[%clk 00:35:16]} {[%emt 00:05:51]} Bxf4 {[%clk
00:42:34]} {[%emt 00:00:06]} 25. h4 {[%clk 00:33:11]} {[%emt 00:02:36]} Bg3
{[%clk 00:40:38]} {[%emt 00:02:26]} 26. Rh3 {[%clk 00:33:34]} {[%emt 00:00:06]}
f4 {[%clk 00:40:48]} {[%emt 00:00:21]} 0-1

[Event "32nd NATO Chess Championship"]
[Site "Tartu, Estonia"]
[Date "2022.06.28"]
[Round "2.5"]
[White "Papasimakopoulos, Alexandros"]
[Black "Cirkvencic, Franci"]
[Result "1-0"]
[TimeControl "90 min + 30 sec increment from move one"]
[WhiteTitle "CM"]
[WhiteFideId "4244125"]
[BlackFideId "14600528"]
[WhiteElo "2259"]
[BlackElo "2000"]

1. d4 {[%emt 00:48:43]} d5 {[%emt 00:00:19]} 2. c4 {[%emt 00:02:47]} e6 {[%emt
00:00:07]} 3. Nc3 {[%emt 00:00:10]} Be7 {[%emt 00:01:08]} 4. cxd5 {[%emt
00:00:56]} exd5 {[%emt 00:00:11]} 5. Bf4 {[%emt 00:00:17]} c6 {[%emt 00:00:20]}
6. e3 {[%emt 00:00:07]} Nf6 {[%emt 00:01:16]} 7. Bd3 {[%emt 00:00:10]} O-O
{[%emt 00:01:57]} 8. Qc2 {[%emt 00:00:16]} Re8 {[%emt 00:03:13]} 9. Nf3 {[%emt
00:01:05]} Nbd7 {[%emt 00:00:26]} 10. O-O {[%emt 00:00:31]} Nf8 {[%emt
00:00:13]} 11. h3 {[%emt 00:03:26]} Ne6 {[%emt 00:04:42]} 12. Bh2 {[%emt
00:01:15]} g6 {[%emt 00:01:03]} 13. Ne5 {[%emt 00:02:40]} Ng7 {[%emt 00:01:14]}
14. g4 {[%emt 00:00:17]} Bd6 {[%emt 00:03:50]} 15. Bg3 {[%emt 00:05:05]} Bxe5
{[%emt 00:05:19]} 16. dxe5 {[%emt 00:07:32]} Nd7 {[%emt 00:01:19]} 17. f4
{[%emt 00:00:44]} Nc5 {[%emt 00:20:21]} 18. Be2 {[%emt 00:02:33]} h5 {[%emt
00:15:54]} 19. Rad1 {[%emt 00:02:55]} Qe7 {[%emt 00:03:38]} 20. Rxd5 {[%emt
00:07:23]} cxd5 {[%emt 00:11:12]} 21. Nxd5 {[%emt 00:00:06]} Qf8 {[%emt
00:00:16]} 22. Nf6+ {[%emt 00:00:28]} Kh8 {[%emt 00:00:08]} 23. Nxe8 {[%emt
00:00:45]} Nxe8 {[%emt 00:00:52]} 24. b4 {[%emt 00:00:04]} Na6 {[%emt
00:18:45]} 25. f5 {[%emt 00:00:11]} gxf5 {[%emt 00:00:54]} 26. gxf5 {[%emt
00:00:06]} Qg7 {[%emt 00:02:56]} 27. Kh2 {[%emt 00:01:58]} h4 {[%emt 00:00:40]}
28. Bf4 {[%emt 00:00:05]} Qh7 {[%emt 00:00:37]} 29. e6 {[%emt 00:00:33]} Bxe6
{[%emt 00:00:47]} 30. Qc3+ {[%emt 00:02:15]} Qg7 {[%emt 00:00:36]} 31. Qxg7+
{[%emt 00:01:41]} Nxg7 {[%emt 00:00:19]} 32. Be5 {[%emt 00:04:03]} Bxf5 {[%emt
00:00:17]} 33. Rxf5 {[%emt 00:00:10]} Kh7 {[%emt 00:00:49]} 34. Rxf7 {[%emt
00:00:06]} Rg8 {[%emt 00:00:34]} 35. Rxb7 {[%emt 00:00:04]} 1-0

[Event "32nd NATO Chess Championship"]
[Site "Tartu, Estonia"]
[Date "2022.06.28"]
[Round "2.6"]
[White "Pietruszewski, Marcin"]
[Black "Duren, Andrew"]
[Result "1/2-1/2"]
[TimeControl "90 min + 30 sec increment from move one"]
[WhiteFideId "1170295"]
[BlackFideId "2019663"]
[WhiteElo "2195"]
[BlackElo "1997"]

1. e4 {[%emt 00:45:44]} c5 {[%emt 00:00:11]} 2. Nf3 {[%emt 00:00:18]} g6 {[%emt
00:00:12]} 3. d4 {[%emt 00:00:12]} cxd4 {[%emt 00:00:06]} 4. Nxd4 {[%emt
00:00:04]} Bg7 {[%emt 00:00:11]} 5. c4 {[%emt 00:00:42]} Nc6 {[%emt 00:00:11]}
6. Be3 {[%emt 00:00:08]} Nf6 {[%emt 00:00:12]} 7. Nc3 {[%emt 00:00:35]} O-O
{[%emt 00:00:11]} 8. Be2 {[%emt 00:02:22]} d6 {[%emt 00:00:41]} 9. O-O {[%emt
00:03:32]} Nxd4 {[%emt 00:01:26]} 10. Bxd4 {[%emt 00:00:32]} Bd7 {[%emt
00:01:04]} 11. Qd2 {[%emt 00:01:41]} Bc6 {[%emt 00:00:28]} 12. f3 {[%emt
00:00:07]} a5 {[%emt 00:00:16]} 13. b3 {[%emt 00:01:14]} Nd7 {[%emt 00:00:38]}
14. Be3 {[%emt 00:00:26]} Nc5 {[%emt 00:00:50]} 15. Rab1 {[%emt 00:04:12]} e6
{[%emt 00:09:46]} 16. Kh1 {[%emt 00:26:04]} f5 {[%emt 00:19:53]} 17. exf5
{[%emt 00:01:52]} gxf5 {[%emt 00:00:36]} 18. Rfd1 {[%emt 00:11:18]} Be5 {[%emt
00:03:26]} 19. Bd4 {[%emt 00:03:08]} Qe7 {[%emt 00:06:45]} 20. Bxe5 {[%emt
00:14:24]} dxe5 {[%emt 00:00:53]} 21. Qe3 {[%emt 00:00:41]} e4 {[%emt
00:02:31]} 22. fxe4 {[%emt 00:08:14]} Nxe4 {[%emt 00:02:29]} 23. Bf3 {[%emt
00:07:08]} Qc5 {[%emt 00:10:55]} 24. Qxc5 {[%emt 00:00:59]} Nxc5 {[%emt
00:02:18]} 25. Bxc6 {[%emt 00:02:35]} bxc6 {[%emt 00:00:08]} 26. Rd6 {[%emt
00:01:53]} Rac8 {[%emt 00:03:58]} 27. Rbd1 {[%emt 00:03:04]} Kf7 {[%emt
00:03:05]} 28. Kg1 {[%emt 00:03:28]} Ke7 {[%emt 00:04:47]} 29. Kf2 {[%emt
00:00:08]} Rfd8 {[%emt 00:00:13]} 30. Rxd8 {[%emt 00:00:32]} Rxd8 {[%emt
00:00:03]} 31. Rxd8 {[%emt 00:00:18]} Kxd8 {[%emt 00:00:04]} 32. Ke3 {[%emt
00:02:22]} Ke7 {[%emt 00:01:11]} 33. Nb1 {[%emt 00:00:20]} e5 {[%emt 00:02:28]}
34. g3 {[%emt 00:00:52]} Kf6 {[%emt 00:03:18]} 35. Nd2 {[%emt 00:00:17]} Ne6
{[%emt 00:07:32]} 36. Nf3 {[%emt 00:01:43]} e4 {[%emt 00:05:44]} 37. Nd2 {[%emt
00:00:39]} Ke5 {[%emt 00:00:23]} 38. Nb1 {[%emt 00:00:26]} h5 {[%emt 00:02:47]}
39. Nc3 {[%emt 00:00:21]} Nd4 {[%emt 00:00:51]} 40. h4 {[%emt 00:00:43]} Nc2+
{[%emt 00:02:14]} 41. Kd2 {[%emt 00:00:19]} Nd4 {[%emt 00:00:08]} 42. Ke3
{[%emt 00:00:02]} Nc2+ {[%emt 00:00:08]} 43. Kd2 {[%emt 00:00:03]} Nd4 {[%emt
00:00:03]} 44. Ke3 {[%emt 00:00:09]} Nc2+ {[%emt 00:00:04]} 1/2-1/2

[Event "32nd NATO Chess Championship"]
[Site "Tartu, Estonia"]
[Date "2022.06.28"]
[Round "2.7"]
[White "Pirs, Matjaz"]
[Black "Sycz, Dariusz"]
[Result "0-1"]
[TimeControl "90 min + 30 sec increment from move one"]
[WhiteFideId "14606941"]
[BlackFideId "1138650"]
[WhiteElo "1965"]
[BlackElo "2189"]

1. d4 {[%clk 01:30:35]} {[%emt 00:00:24]} Nf6 {[%clk 01:28:32]} {[%emt
00:02:28]} 2. Bf4 {[%clk 01:29:29]} {[%emt 00:01:36]} c5 {[%clk 01:27:11]}
{[%emt 00:01:51]} 3. d5 {[%clk 01:14:13]} {[%emt 00:15:47]} d6 {[%clk
01:26:49]} {[%emt 00:00:52]} 4. c4 {[%clk 01:13:17]} {[%emt 00:01:26]} b5
{[%clk 01:26:03]} {[%emt 00:01:15]} 5. cxb5 {[%clk 01:06:00]} {[%emt 00:07:48]}
a6 {[%clk 01:25:23]} {[%emt 00:01:10]} 6. e3 {[%clk 00:59:13]} {[%emt
00:07:16]} g6 {[%clk 01:24:49]} {[%emt 00:01:05]} 7. Nc3 {[%clk 00:57:23]}
{[%emt 00:02:19]} Bg7 {[%clk 01:24:48]} {[%emt 00:00:31]} 8. e4 {[%clk
00:44:36]} {[%emt 00:13:18]} O-O {[%clk 01:23:14]} {[%emt 00:02:03]} 9. a4
{[%clk 00:29:50]} {[%emt 00:15:16]} Qa5 {[%clk 00:59:24]} {[%emt 00:24:20]} 10.
Bd2 {[%clk 00:24:34]} {[%emt 00:05:46]} axb5 {[%clk 00:58:47]} {[%emt
00:01:07]} 11. Bxb5 {[%clk 00:21:04]} {[%emt 00:04:00]} Ba6 {[%clk 00:56:02]}
{[%emt 00:03:15]} 12. Ra3 {[%clk 00:20:31]} {[%emt 00:01:03]} Nbd7 {[%clk
00:49:47]} {[%emt 00:06:45]} 13. Nf3 {[%clk 00:20:03]} {[%emt 00:00:59]} Bxb5
{[%clk 00:48:28]} {[%emt 00:01:49]} 14. Nxb5 {[%clk 00:16:20]} {[%emt
00:04:13]} Qb6 {[%clk 00:47:49]} {[%emt 00:01:08]} 15. Qc2 {[%clk 00:15:19]}
{[%emt 00:01:32]} Ra6 {[%clk 00:38:51]} {[%emt 00:09:27]} 16. Bc3 {[%clk
00:15:03]} {[%emt 00:00:46]} Rfa8 {[%clk 00:38:37]} {[%emt 00:00:44]} 17. O-O
{[%clk 00:15:05]} {[%emt 00:00:29]} Qb7 {[%clk 00:37:24]} {[%emt 00:01:42]} 18.
Nd2 {[%clk 00:12:43]} {[%emt 00:02:53]} Nb6 {[%clk 00:35:24]} {[%emt 00:02:29]}
19. b3 {[%clk 00:11:58]} {[%emt 00:01:15]} Nfd7 {[%clk 00:22:14]} {[%emt
00:13:39]} 20. Bxg7 {[%clk 00:12:16]} {[%emt 00:00:14]} Kxg7 {[%clk 00:22:41]}
{[%emt 00:00:02]} 21. h3 {[%clk 00:09:34]} {[%emt 00:03:11]} Kg8 {[%clk
00:16:16]} {[%emt 00:06:56]} 22. f4 {[%clk 00:09:19]} {[%emt 00:00:45]} c4
{[%clk 00:12:33]} {[%emt 00:04:14]} 23. Nxc4 {[%clk 00:07:58]} {[%emt
00:01:51]} Rc8 {[%clk 00:12:23]} {[%emt 00:00:40]} 24. Qe2 {[%clk 00:07:08]}
{[%emt 00:01:19]} Nxc4 {[%clk 00:11:31]} {[%emt 00:01:23]} 25. bxc4 {[%clk
00:07:26]} {[%emt 00:00:12]} Nb6 {[%clk 00:11:48]} {[%emt 00:00:12]} 26. Rc1
{[%clk 00:06:14]} {[%emt 00:01:42]} Rxa4 {[%clk 00:10:33]} {[%emt 00:01:45]} 27.
Rxa4 {[%clk 00:06:19]} {[%emt 00:00:26]} Nxa4 {[%clk 00:10:58]} {[%emt
00:00:04]} 28. Kh2 {[%clk 00:05:47]} {[%emt 00:01:02]} Nb6 {[%clk 00:08:16]}
{[%emt 00:03:12]} 29. Nd4 {[%clk 00:05:48]} {[%emt 00:00:29]} Rc5 {[%clk
00:07:21]} {[%emt 00:01:25]} 30. Nb3 {[%clk 00:05:41]} {[%emt 00:00:38]} Rc7
{[%clk 00:07:13]} {[%emt 00:00:37]} 31. Na5 {[%clk 00:04:54]} {[%emt 00:01:17]}
Qa6 {[%clk 00:07:26]} {[%emt 00:00:16]} 32. Nc6 {[%clk 00:05:16]} {[%emt
00:00:09]} Qa3 {[%clk 00:06:47]} {[%emt 00:01:09]} 33. Qe1 {[%clk 00:02:20]}
{[%emt 00:03:26]} Qc5 {[%clk 00:04:28]} {[%emt 00:02:49]} 34. Qg1 {[%clk
00:02:02]} {[%emt 00:00:44]} Qxg1+ {[%clk 00:03:01]} {[%emt 00:02:01]} 35. Kxg1
{[%clk 00:02:12]} {[%emt 00:00:20]} e6 {[%clk 00:03:25]} {[%emt 00:00:06]} 36.
Kf2 {[%clk 00:02:17]} {[%emt 00:00:25]} f5 {[%clk 00:02:34]} {[%emt 00:01:21]}
37. exf5 {[%clk 00:00:53]} {[%emt 00:01:55]} exd5 {[%clk 00:02:16]} {[%emt
00:00:47]} 38. cxd5 {[%clk 00:00:36]} {[%emt 00:00:47]} Nxd5 {[%clk 00:02:38]}
{[%emt 00:00:07]} 39. Kf3 {[%clk 00:00:46]} {[%emt 00:00:20]} Nb4 {[%clk
00:02:09]} {[%emt 00:00:59]} 40. fxg6 {[%clk 00:00:45]} {[%emt 00:00:33]} hxg6
{[%clk 00:02:19]} {[%emt 00:00:20]} 41. Ke4 {[%clk 00:00:44]} {[%emt 00:00:29]}
Nxc6 {[%clk 00:01:29]} {[%emt 00:01:21]} 42. g4 {[%clk 00:00:51]} {[%emt
00:00:23]} d5+ {[%clk 00:01:51]} {[%emt 00:00:09]} 43. Kf3 {[%clk 00:01:04]}
{[%emt 00:00:17]} Kf7 {[%clk 00:02:14]} {[%emt 00:00:07]} 44. h4 {[%clk
00:01:19]} {[%emt 00:00:14]} Nd4+ {[%clk 00:02:28]} {[%emt 00:00:16]} 0-1

[Event "32nd NATO Chess Championship"]
[Site "Tartu, Estonia"]
[Date "2022.06.28"]
[Round "2.8"]
[White "Cichy, Kamil"]
[Black "Nielsen, Jan Mose"]
[Result "1-0"]
[TimeControl "90 min + 30 sec increment from move one"]
[WhiteFideId "1177257"]
[BlackFideId "1405306"]
[WhiteElo "2179"]
[BlackElo "1991"]

1. e4 {[%clk 01:30:15]} {[%emt 00:00:44]} c6 {[%clk 01:30:52]} {[%emt
00:00:08]} 2. d4 {[%clk 01:25:47]} {[%emt 00:04:57]} d5 {[%clk 01:30:44]}
{[%emt 00:00:39]} 3. Nc3 {[%clk 01:25:31]} {[%emt 00:00:45]} dxe4 {[%clk
01:29:46]} {[%emt 00:01:29]} 4. Nxe4 {[%clk 01:25:59]} {[%emt 00:00:02]} g6
{[%clk 01:25:14]} {[%emt 00:05:01]} 5. Bc4 {[%clk 01:22:03]} {[%emt 00:04:26]}
Bg7 {[%clk 01:19:34]} {[%emt 00:06:11]} 6. Nf3 {[%clk 01:10:09]} {[%emt
00:12:23]} e6 {[%clk 01:17:27]} {[%emt 00:02:37]} 7. Bf4 {[%clk 01:04:31]}
{[%emt 00:06:08]} Nf6 {[%clk 01:17:00]} {[%emt 00:00:57]} 8. Nd6+ {[%clk
01:00:01]} {[%emt 00:05:00]} Kf8 {[%clk 01:17:28]} {[%emt 00:00:02]} 9. Ng5
{[%clk 00:34:11]} {[%emt 00:26:20]} Qa5+ {[%clk 01:12:57]} {[%emt 00:05:02]} 10.
Bd2 {[%clk 00:30:55]} {[%emt 00:03:45]} Qc7 {[%clk 01:10:51]} {[%emt 00:02:36]}
11. Ndxf7 {[%clk 00:28:17]} {[%emt 00:03:08]} Rg8 {[%clk 01:11:06]} {[%emt
00:00:15]} 12. Bb4+ {[%clk 00:27:03]} {[%emt 00:01:45]} Ke8 {[%clk 01:11:33]}
{[%emt 00:00:02]} 13. Nd6+ {[%clk 00:26:28]} {[%emt 00:01:05]} 1-0

[Event "32nd NATO Chess Championship"]
[Site "Tartu, Estonia"]
[Date "2022.06.28"]
[Round "2.9"]
[White "Koopmeiners, Karl"]
[Black "Valeinis, Janis"]
[Result "0-1"]
[TimeControl "90 min + 30 sec increment from move one"]
[WhiteFideId "24624373"]
[BlackFideId "11601450"]
[WhiteElo "1946"]
[BlackElo "2176"]

1. d4 {[%clk 01:30:54]} {[%emt 00:00:06]} Nf6 {[%clk 01:30:21]} {[%emt
00:00:39]} 2. c4 {[%clk 01:31:10]} {[%emt 00:00:14]} g6 {[%clk 01:30:43]}
{[%emt 00:00:08]} 3. Nf3 {[%clk 01:31:31]} {[%emt 00:00:08]} Bg7 {[%clk
01:31:07]} {[%emt 00:00:06]} 4. g3 {[%clk 01:31:46]} {[%emt 00:00:15]} O-O
{[%clk 01:31:31]} {[%emt 00:00:07]} 5. Bg2 {[%clk 01:32:07]} {[%emt 00:00:09]}
d6 {[%clk 01:31:48]} {[%emt 00:00:13]} 6. O-O {[%clk 01:32:11]} {[%emt
00:00:24]} Nbd7 {[%clk 01:29:01]} {[%emt 00:03:18]} 7. Nc3 {[%clk 01:32:09]}
{[%emt 00:00:32]} e5 {[%clk 01:29:22]} {[%emt 00:00:09]} 8. e4 {[%clk
01:32:28]} {[%emt 00:00:11]} c6 {[%clk 01:26:53]} {[%emt 00:02:59]} 9. h3
{[%clk 01:29:56]} {[%emt 00:03:01]} exd4 {[%clk 01:22:31]} {[%emt 00:04:54]} 10.
Nxd4 {[%clk 01:28:38]} {[%emt 00:01:47]} Qb6 {[%clk 01:22:53]} {[%emt
00:00:09]} 11. Nb3 {[%clk 01:21:05]} {[%emt 00:08:02]} Ne8 {[%clk 01:02:35]}
{[%emt 00:20:48]} 12. Bg5 {[%clk 01:13:02]} {[%emt 00:08:33]} f6 {[%clk
01:01:58]} {[%emt 00:01:08]} 13. Be3 {[%clk 01:07:34]} {[%emt 00:05:58]} Qb4
{[%clk 00:59:14]} {[%emt 00:03:15]} 14. Qe2 {[%clk 01:02:25]} {[%emt 00:05:37]}
a5 {[%clk 00:45:28]} {[%emt 00:14:17]} 15. Rab1 {[%clk 00:53:39]} {[%emt
00:09:15]} a4 {[%clk 00:44:56]} {[%emt 00:01:02]} 16. Nd2 {[%clk 00:54:01]}
{[%emt 00:00:08]} Nc5 {[%clk 00:39:29]} {[%emt 00:05:58]} 17. f4 {[%clk
00:51:51]} {[%emt 00:02:40]} f5 {[%clk 00:37:49]} {[%emt 00:02:10]} 18. g4
{[%clk 00:46:52]} {[%emt 00:05:28]} a3 {[%clk 00:34:28]} {[%emt 00:03:51]} 19.
exf5 {[%clk 00:36:31]} {[%emt 00:10:51]} gxf5 {[%clk 00:32:55]} {[%emt
00:02:04]} 20. Nd5 {[%clk 00:35:18]} {[%emt 00:01:42]} cxd5 {[%clk 00:32:16]}
{[%emt 00:01:09]} 21. bxa3 {[%clk 00:35:28]} {[%emt 00:00:21]} Qxa3 {[%clk
00:32:03]} {[%emt 00:00:43]} 22. Bxd5+ {[%clk 00:34:15]} {[%emt 00:01:43]} Kh8
{[%clk 00:30:31]} {[%emt 00:02:02]} 23. g5 {[%clk 00:29:52]} {[%emt 00:04:52]}
Nc7 {[%clk 00:30:43]} {[%emt 00:00:18]} 24. Nb3 {[%clk 00:28:02]} {[%emt
00:02:20]} Nxd5 {[%clk 00:26:28]} {[%emt 00:04:45]} 25. cxd5 {[%clk 00:28:13]}
{[%emt 00:00:19]} Qxa2 {[%clk 00:23:37]} {[%emt 00:03:21]} 26. Qxa2 {[%clk
00:27:32]} {[%emt 00:01:11]} Rxa2 {[%clk 00:24:03]} {[%emt 00:00:04]} 27. Nxc5
{[%clk 00:26:56]} {[%emt 00:01:06]} dxc5 {[%clk 00:24:29]} {[%emt 00:00:04]} 28.
Bxc5 {[%clk 00:26:34]} {[%emt 00:00:52]} Rd8 {[%clk 00:24:38]} {[%emt
00:00:22]} 29. Rbd1 {[%clk 00:25:41]} {[%emt 00:01:23]} Bd7 {[%clk 00:17:57]}
{[%emt 00:07:10]} 30. Rfe1 {[%clk 00:19:03]} {[%emt 00:07:08]} Kg8 {[%clk
00:17:29]} {[%emt 00:00:57]} 31. Bd6 {[%clk 00:17:19]} {[%emt 00:02:15]} Bf8
{[%clk 00:14:08]} {[%emt 00:03:52]} 32. Be5 {[%clk 00:16:26]} {[%emt 00:01:22]}
Bc5+ {[%clk 00:14:27]} {[%emt 00:00:11]} 33. Kh1 {[%clk 00:16:24]} {[%emt
00:00:32]} Ba4 {[%clk 00:14:25]} {[%emt 00:00:33]} 0-1